[Event "Titled Tuesday Blitz August 16 Late 2022"]
[White "Pinheiro, Iung Alicio de O."]
[Black "Postnikov, Daniil"]
[WhiteFideId "2104350"]
[BlackFideId "4166329"]
[WhiteElo "2283"]
[BlackElo "2261"]
[Result "0-1"]
[Round "08"]
[TimeControl "180+1"]
[Date "2022.08.16"]
[WhiteClock "0:00:03"]
[BlackClock "0:00:44"]

1. e4 {[%clk 0:03:00]}  e6 {[%clk 0:02:59]} 2. d4 {[%clk 0:03:00]}  d5 {[%clk 0:03:00]} 3. e5 {[%clk 0:03:00]}  c5 {[%clk 0:03:00]} 4. c3 {[%clk 0:03:01]}  Nc6 {[%clk 0:03:00]} 5. Nf3 {[%clk 0:03:01]}  Qb6 {[%clk 0:03:01]} 6. Bd3 {[%clk 0:03:01]}  f6 {[%clk 0:03:00]} 7. O-O {[%clk 0:03:01]}  fxe5 {[%clk 0:02:59]} 8. dxe5 {[%clk 0:02:57]}  c4 {[%clk 0:02:59]} 9. Bc2 {[%clk 0:02:52]}  g6 {[%clk 0:02:59]} 10. b3 {[%clk 0:02:46]}  cxb3 {[%clk 0:02:56]} 11. axb3 {[%clk 0:02:45]}  Bg7 {[%clk 0:02:55]} 12. Re1 {[%clk 0:02:38]}  Nh6 {[%clk 0:02:50]} 13. Ba3 {[%clk 0:02:17]}  Ng4 {[%clk 0:02:35]} 14. Qe2 {[%clk 0:02:12]}  Ngxe5 {[%clk 0:02:30]} 15. Ng5 {[%clk 0:01:38]}  Bd7 {[%clk 0:02:20]} 16. Nd2 {[%clk 0:01:32]}  h6 {[%clk 0:02:16]} 17. Ngf3 {[%clk 0:01:19]}  Nxf3+ {[%clk 0:01:58]} 18. Nxf3 {[%clk 0:01:20]}  Bxc3 {[%clk 0:01:53]} 19. Bxg6+ {[%clk 0:01:19]}  Kd8 {[%clk 0:01:53]} 20. Rac1 {[%clk 0:01:09]}  Bxe1 {[%clk 0:01:52]} 21. Qxe1 {[%clk 0:01:07]}  Qxb3 {[%clk 0:01:35]} 22. Bd6 {[%clk 0:01:01]}  Rg8 {[%clk 0:01:32]} 23. Bf7 {[%clk 0:00:50]}  Rg7 {[%clk 0:01:33]} 24. Bh5 {[%clk 0:00:41]}  d4 {[%clk 0:00:57]} 25. Ne5 {[%clk 0:00:38]}  Qd5 {[%clk 0:00:52]} 26. Nf7+ {[%clk 0:00:05]}  Kc8 {[%clk 0:00:48]} 27. Bg3 {[%clk 0:00:03]}  Qxh5 {[%clk 0:00:48]} 28. Nd6+ {[%clk 0:00:03]}  Kd8 {[%clk 0:00:47]} 29. Nxb7+ {[%clk 0:00:03]}  Ke7 {[%clk 0:00:44]} 0-1


[Site "https://www.chess.com"]

[Event "Titled Tuesday Blitz August 16 Late 2022"]
[White "Potapova, Margarita"]
[Black "Roman, Rodrigo"]
[WhiteFideId "14126869"]
[BlackFideId "3701220"]
[WhiteElo "2225"]
[BlackElo "2001"]
[Result "1-0"]
[Round "08"]
[TimeControl "180+1"]
[Date "2022.08.18"]
[WhiteClock "0:00:00"]
[BlackClock "0:00:00"]

1. d4 {[%clk 0:00:00]}  Nf6 {[%clk 0:00:00]} 2. Bg5 {[%clk 0:00:00]}  d5 {[%clk 0:00:00]} 3. e3 {[%clk 0:00:00]}  Ne4 {[%clk 0:00:00]} 4. Bf4 {[%clk 0:00:00]}  c5 {[%clk 0:00:00]} 5. Nf3 {[%clk 0:00:00]}  Nc6 {[%clk 0:00:00]} 6. Nbd2 {[%clk 0:00:00]}  Qb6 {[%clk 0:00:00]} 7. Rb1 {[%clk 0:00:00]}  cxd4 {[%clk 0:00:00]} 8. Nxe4 {[%clk 0:00:00]}  dxe4 {[%clk 0:00:00]} 9. Nxd4 {[%clk 0:00:00]}  e5 {[%clk 0:00:00]} 10. Nxc6 {[%clk 0:00:00]}  exf4 {[%clk 0:00:00]} 11. Nd4 {[%clk 0:00:00]}  fxe3 {[%clk 0:00:00]} 12. fxe3 {[%clk 0:00:00]}  Bd7 {[%clk 0:00:00]} 13. Be2 {[%clk 0:00:00]}  Qh6 {[%clk 0:00:00]} 14. Qd2 {[%clk 0:00:00]}  Bd6 {[%clk 0:00:00]} 15. Nb5 {[%clk 0:00:00]}  Qh4+ {[%clk 0:00:00]} 16. Kf1 {[%clk 0:00:00]}  Qf6+ {[%clk 0:00:00]} 17. Ke1 {[%clk 0:00:00]}  Be5 {[%clk 0:00:00]} 18. Rd1 {[%clk 0:00:00]}  Bc6 {[%clk 0:00:00]} 19. Nd6+ {[%clk 0:00:00]}  Ke7 {[%clk 0:00:00]} 20. Qb4 {[%clk 0:00:00]}  Bxd6 {[%clk 0:00:00]} 21. Qc4 {[%clk 0:00:00]}  Rhd8 {[%clk 0:00:00]} 22. c3 {[%clk 0:00:00]}  Qh4+ {[%clk 0:00:00]} 23. Kd2 {[%clk 0:00:00]}  Qf2 {[%clk 0:00:00]} 24. Rhf1 {[%clk 0:00:00]}  Bc5+ {[%clk 0:00:00]} 25. Kc2 {[%clk 0:00:00]}  Bxe3 {[%clk 0:00:00]} 26. Rxf2 {[%clk 0:00:00]}  Bxf2 {[%clk 0:00:00]} 27. Rf1 {[%clk 0:00:00]}  e3 {[%clk 0:00:00]} 28. Bd3 {[%clk 0:00:00]}  g6 {[%clk 0:00:00]} 29. Qf4 {[%clk 0:00:00]}  f5 {[%clk 0:00:00]} 30. Qh6 {[%clk 0:00:00]}  Kf6 {[%clk 0:00:00]} 31. Qxh7 {[%clk 0:00:00]}  Rxd3 {[%clk 0:00:00]} 32. Kxd3 {[%clk 0:00:00]}  Rd8+ {[%clk 0:00:00]} 33. Kc4 {[%clk 0:00:00]}  Bd5+ {[%clk 0:00:00]} 34. Kb4 {[%clk 0:00:00]}  a5+ {[%clk 0:00:00]} 35. Ka3 {[%clk 0:00:00]}  e2 {[%clk 0:00:00]} 36. Rxf2 {[%clk 0:00:00]}  e1=Q {[%clk 0:00:00]} 37. Qh4+ {[%clk 0:00:00]}  Kg7 {[%clk 0:00:00]} 38. Qxd8 {[%clk 0:00:00]}  Qxf2 {[%clk 0:00:00]} 39. Qxd5 {[%clk 0:00:00]}  Qb6 {[%clk 0:00:00]} 40. Qd4+ {[%clk 0:00:00]}  Qxd4 {[%clk 0:00:00]} 41. cxd4 {[%clk 0:00:00]}  Kf6 {[%clk 0:00:00]} 42. Kb3 {[%clk 0:00:00]}  Ke6 {[%clk 0:00:00]} 43. Kc4 {[%clk 0:00:00]}  Kd6 {[%clk 0:00:00]} 44. d5 {[%clk 0:00:00]}  g5 {[%clk 0:00:00]} 45. Kd4 {[%clk 0:00:00]}  b5 {[%clk 0:00:00]} 46. a3 {[%clk 0:00:00]}  a4 {[%clk 0:00:00]} 47. h3 {[%clk 0:00:00]}  f4 {[%clk 0:00:00]} 48. Ke4 {[%clk 0:00:00]}  Kd7 {[%clk 0:00:00]} 49. Ke5 {[%clk 0:00:00]}  Ke7 {[%clk 0:00:00]} 50. Kf5 {[%clk 0:00:00]}  f3 {[%clk 0:00:00]} 51. gxf3 {[%clk 0:00:00]}  Kd7 {[%clk 0:00:00]} 52. Kxg5 {[%clk 0:00:00]}  b4 {[%clk 0:00:00]} 53. axb4 {[%clk 0:00:00]}  Kd6 {[%clk 0:00:00]} 54. h4 {[%clk 0:00:00]}  Kxd5 {[%clk 0:00:00]} 55. h5 {[%clk 0:00:00]}  Kc4 {[%clk 0:00:00]} 56. h6 {[%clk 0:00:00]}  Kxb4 {[%clk 0:00:00]} 57. h7 {[%clk 0:00:00]}  a3 {[%clk 0:00:00]} 58. bxa3+ {[%clk 0:00:00]}  Kxa3 {[%clk 0:00:00]} 59. h8=Q {[%clk 0:00:00]}  Ka4 {[%clk 0:00:00]} 60. f4 {[%clk 0:00:00]}  Kb4 {[%clk 0:00:00]} 61. f5 {[%clk 0:00:00]}  Kb5 {[%clk 0:00:00]} 62. f6 {[%clk 0:00:00]}  Kc6 {[%clk 0:00:00]} 63. f7 {[%clk 0:00:00]}  Kd5 {[%clk 0:00:00]} 64. f8=Q {[%clk 0:00:00]}  Kc4 {[%clk 0:00:00]} 65. Qf4+ {[%clk 0:00:00]}  Kd3 {[%clk 0:00:00]} 66. Qh3+ {[%clk 0:00:00]}  Kc2 {[%clk 0:00:00]} 67. Qf2+ {[%clk 0:00:00]}  Kd1 {[%clk 0:00:00]} 68. Qh1# {[%clk 0:00:00]} 1-0


[Site "https://www.chess.com"]

[Event "Titled Tuesday Blitz August 16 Late 2022"]
[White "Pourkashiyan, Atousa"]
[Black "Filgueira, Hernan"]
[WhiteFideId "12502014"]
[BlackFideId "101770"]
[WhiteElo "2247"]
[BlackElo "2363"]
[Result "0-1"]
[Round "08"]
[TimeControl "180+1"]
[Date "2022.08.18"]
[WhiteClock "0:00:00"]
[BlackClock "0:00:00"]

1. e4 {[%clk 0:00:00]}  d6 {[%clk 0:00:00]} 2. d4 {[%clk 0:00:00]}  Nf6 {[%clk 0:00:00]} 3. Nc3 {[%clk 0:00:00]}  c6 {[%clk 0:00:00]} 4. a4 {[%clk 0:00:00]}  g6 {[%clk 0:00:00]} 5. Nf3 {[%clk 0:00:00]}  Bg7 {[%clk 0:00:00]} 6. Bc4 {[%clk 0:00:00]}  d5 {[%clk 0:00:00]} 7. Bd3 {[%clk 0:00:00]}  dxe4 {[%clk 0:00:00]} 8. Nxe4 {[%clk 0:00:00]}  Nbd7 {[%clk 0:00:00]} 9. O-O {[%clk 0:00:00]}  Nxe4 {[%clk 0:00:00]} 10. Bxe4 {[%clk 0:00:00]}  Nf6 {[%clk 0:00:00]} 11. Bd3 {[%clk 0:00:00]}  Bg4 {[%clk 0:00:00]} 12. c3 {[%clk 0:00:00]}  O-O {[%clk 0:00:00]} 13. h3 {[%clk 0:00:00]}  Bxf3 {[%clk 0:00:00]} 14. Qxf3 {[%clk 0:00:00]}  Re8 {[%clk 0:00:00]} 15. Bg5 {[%clk 0:00:00]}  Qc7 {[%clk 0:00:00]} 16. Rfe1 {[%clk 0:00:00]}  a5 {[%clk 0:00:00]} 17. Re2 {[%clk 0:00:00]}  Nd5 {[%clk 0:00:00]} 18. Rae1 {[%clk 0:00:00]}  e6 {[%clk 0:00:00]} 19. h4 {[%clk 0:00:00]}  c5 {[%clk 0:00:00]} 20. dxc5 {[%clk 0:00:00]}  Qxc5 {[%clk 0:00:00]} 21. h5 {[%clk 0:00:00]}  Ne7 {[%clk 0:00:00]} 22. Bxe7 {[%clk 0:00:00]}  Rxe7 {[%clk 0:00:00]} 23. hxg6 {[%clk 0:00:00]}  hxg6 {[%clk 0:00:00]} 24. Bxg6 {[%clk 0:00:00]}  fxg6 {[%clk 0:00:00]} 25. Rxe6 {[%clk 0:00:00]}  Rxe6 {[%clk 0:00:00]} 26. Rxe6 {[%clk 0:00:00]}  Qf5 {[%clk 0:00:00]} 27. Qxb7 {[%clk 0:00:00]}  Rf8 {[%clk 0:00:00]} 28. Re2 {[%clk 0:00:00]}  Qb1+ {[%clk 0:00:00]} 29. Kh2 {[%clk 0:00:00]}  Qf5 {[%clk 0:00:00]} 30. Qb3+ {[%clk 0:00:00]}  Kh7 {[%clk 0:00:00]} 31. Qc4 {[%clk 0:00:00]}  Qf4+ {[%clk 0:00:00]} 32. Qxf4 {[%clk 0:00:00]}  Rxf4 {[%clk 0:00:00]} 33. Re7 {[%clk 0:00:00]}  Rxa4 {[%clk 0:00:00]} 34. Ra7 {[%clk 0:00:00]}  Ra2 {[%clk 0:00:00]} 35. b4 {[%clk 0:00:00]}  a4 {[%clk 0:00:00]} 36. b5 {[%clk 0:00:00]}  Kh6 {[%clk 0:00:00]} 37. b6 {[%clk 0:00:00]}  Bxc3 {[%clk 0:00:00]} 38. b7 {[%clk 0:00:00]}  Be5+ {[%clk 0:00:00]} 39. Kh3 {[%clk 0:00:00]}  Rxf2 {[%clk 0:00:00]} 40. Rxa4 {[%clk 0:00:00]}  Rb2 {[%clk 0:00:00]} 41. Re4 {[%clk 0:00:00]}  Bb8 {[%clk 0:00:00]} 42. Re7 {[%clk 0:00:00]}  Kg5 {[%clk 0:00:00]} 43. Rf7 {[%clk 0:00:00]}  Rb3+ {[%clk 0:00:00]} 44. Rf3 {[%clk 0:00:00]}  Rxb7 {[%clk 0:00:00]} 45. Rd3 {[%clk 0:00:00]}  Rb2 {[%clk 0:00:00]} 46. Rd5+ {[%clk 0:00:00]}  Kh6 {[%clk 0:00:00]} 47. Rd3 {[%clk 0:00:00]}  g5 {[%clk 0:00:00]} 48. Ra3 {[%clk 0:00:00]}  Rb4 {[%clk 0:00:00]} 49. g3 {[%clk 0:00:00]}  Be5 {[%clk 0:00:00]} 50. Re3 {[%clk 0:00:00]}  g4+ {[%clk 0:00:00]} 51. Kg2 {[%clk 0:00:00]}  Bf6 {[%clk 0:00:00]} 52. Re2 {[%clk 0:00:00]}  Rb2 {[%clk 0:00:00]} 53. Rxb2 {[%clk 0:00:00]}  Bxb2 {[%clk 0:00:00]} 54. Kf2 {[%clk 0:00:00]}  Kg5 {[%clk 0:00:00]} 55. Ke2 {[%clk 0:00:00]}  Kf5 {[%clk 0:00:00]} 56. Ke3 {[%clk 0:00:00]}  Be5 {[%clk 0:00:00]} 57. Kf2 {[%clk 0:00:00]}  Ke4 {[%clk 0:00:00]} 58. Kg2 {[%clk 0:00:00]}  Ke3 {[%clk 0:00:00]} 59. Kg1 {[%clk 0:00:00]}  Kf3 {[%clk 0:00:00]} 60. Kh2 {[%clk 0:00:00]}  Bxg3+ {[%clk 0:00:00]} 61. Kh1 {[%clk 0:00:00]}  Bf4 {[%clk 0:00:00]} 62. Kg1 {[%clk 0:00:00]}  g3 {[%clk 0:00:00]} 63. Kh1 {[%clk 0:00:00]}  g2+ {[%clk 0:00:00]} 64. Kg1 {[%clk 0:00:00]}  Be3+ {[%clk 0:00:00]} 0-1


[Site "https://www.chess.com"]

[Event "Titled Tuesday Blitz August 16 Late 2022"]
[White "Quirke, Jeffrey"]
[Black "McBryde, Lamel"]
[WhiteFideId "2013029"]
[BlackFideId "2058596"]
[WhiteElo "2048"]
[BlackElo "2136"]
[Result "1-0"]
[Round "08"]
[TimeControl "180+1"]
[Date "2022.08.18"]
[WhiteClock "0:00:00"]
[BlackClock "0:00:00"]

1. d4 {[%clk 0:00:00]}  Nf6 {[%clk 0:00:00]} 2. c4 {[%clk 0:00:00]}  g6 {[%clk 0:00:00]} 3. Nc3 {[%clk 0:00:00]}  Bg7 {[%clk 0:00:00]} 4. e4 {[%clk 0:00:00]}  d6 {[%clk 0:00:00]} 5. Be2 {[%clk 0:00:00]}  O-O {[%clk 0:00:00]} 6. Nf3 {[%clk 0:00:00]}  e5 {[%clk 0:00:00]} 7. O-O {[%clk 0:00:00]}  Nc6 {[%clk 0:00:00]} 8. Be3 {[%clk 0:00:00]}  Ng4 {[%clk 0:00:00]} 9. Bg5 {[%clk 0:00:00]}  f6 {[%clk 0:00:00]} 10. Bh4 {[%clk 0:00:00]}  g5 {[%clk 0:00:00]} 11. Bg3 {[%clk 0:00:00]}  h5 {[%clk 0:00:00]} 12. d5 {[%clk 0:00:00]}  Ne7 {[%clk 0:00:00]} 13. Nd2 {[%clk 0:00:00]}  f5 {[%clk 0:00:00]} 14. exf5 {[%clk 0:00:00]}  Nxf5 {[%clk 0:00:00]} 15. Bxg4 {[%clk 0:00:00]}  Nxg3 {[%clk 0:00:00]} 16. Bxc8 {[%clk 0:00:00]}  Nxf1 {[%clk 0:00:00]} 17. Be6+ {[%clk 0:00:00]}  Kh7 {[%clk 0:00:00]} 18. Qxh5+ {[%clk 0:00:00]}  Bh6 {[%clk 0:00:00]} 19. Rxf1 {[%clk 0:00:00]}  Qf6 {[%clk 0:00:00]} 20. Nde4 {[%clk 0:00:00]}  Qg6 {[%clk 0:00:00]} 21. Qxg6+ {[%clk 0:00:00]}  Kxg6 {[%clk 0:00:00]} 22. f3 {[%clk 0:00:00]}  a6 {[%clk 0:00:00]} 23. c5 {[%clk 0:00:00]}  g4 {[%clk 0:00:00]} 24. cxd6 {[%clk 0:00:00]}  cxd6 {[%clk 0:00:00]} 25. Nxd6 {[%clk 0:00:00]}  Be3+ {[%clk 0:00:00]} 26. Kh1 {[%clk 0:00:00]}  gxf3 {[%clk 0:00:00]} 27. gxf3 {[%clk 0:00:00]}  Rh8 {[%clk 0:00:00]} 28. Nde4 {[%clk 0:00:00]}  Rh5 {[%clk 0:00:00]} 29. Bg4 {[%clk 0:00:00]}  Rh6 {[%clk 0:00:00]} 30. d6 {[%clk 0:00:00]}  Rah8 {[%clk 0:00:00]} 31. h3 {[%clk 0:00:00]}  b5 {[%clk 0:00:00]} 32. a3 {[%clk 0:00:00]}  b4 {[%clk 0:00:00]} 33. axb4 {[%clk 0:00:00]}  Rb8 {[%clk 0:00:00]} 34. d7 {[%clk 0:00:00]}  Rhh8 {[%clk 0:00:00]} 35. Nd5 {[%clk 0:00:00]}  Bd4 {[%clk 0:00:00]} 36. Rc1 {[%clk 0:00:00]}  a5 {[%clk 0:00:00]} 37. Rc8 {[%clk 0:00:00]} 1-0


[Site "https://www.chess.com"]

[Event "Titled Tuesday Blitz August 16 Late 2022"]
[White "Rasulov, Vugar"]
[Black "Badmatsyrenov, Oleg"]
[WhiteFideId "13402390"]
[BlackFideId "24115762"]
[WhiteElo "2509"]
[BlackElo "2403"]
[Result "1-0"]
[Round "08"]
[TimeControl "180+1"]
[Date "2022.08.16"]
[WhiteClock "0:01:28"]
[BlackClock "0:00:14"]

1. d4 {[%clk 0:03:00]}  Nf6 {[%clk 0:02:57]} 2. c4 {[%clk 0:03:01]}  c5 {[%clk 0:02:54]} 3. d5 {[%clk 0:03:00]}  e6 {[%clk 0:02:54]} 4. Nc3 {[%clk 0:03:00]}  exd5 {[%clk 0:02:55]} 5. cxd5 {[%clk 0:03:01]}  d6 {[%clk 0:02:54]} 6. Nf3 {[%clk 0:03:01]}  g6 {[%clk 0:02:54]} 7. Nd2 {[%clk 0:03:01]}  Bg7 {[%clk 0:02:53]} 8. e4 {[%clk 0:03:02]}  O-O {[%clk 0:02:53]} 9. Be2 {[%clk 0:03:03]}  Na6 {[%clk 0:02:51]} 10. O-O {[%clk 0:03:03]}  Re8 {[%clk 0:02:45]} 11. f3 {[%clk 0:03:03]}  Nd7 {[%clk 0:02:43]} 12. Nc4 {[%clk 0:03:00]}  Ne5 {[%clk 0:02:33]} 13. Ne3 {[%clk 0:03:01]}  f5 {[%clk 0:02:25]} 14. f4 {[%clk 0:02:52]}  Nf7 {[%clk 0:02:20]} 15. exf5 {[%clk 0:02:52]}  gxf5 {[%clk 0:02:19]} 16. Kh1 {[%clk 0:02:44]}  Bd7 {[%clk 0:02:01]} 17. Bd2 {[%clk 0:02:36]}  Bd4 {[%clk 0:01:50]} 18. Nc2 {[%clk 0:02:33]}  Bg7 {[%clk 0:01:46]} 19. Rf3 {[%clk 0:02:32]}  Kh8 {[%clk 0:01:45]} 20. Rh3 {[%clk 0:02:30]}  Qf6 {[%clk 0:01:31]} 21. Be1 {[%clk 0:02:22]}  Nh6 {[%clk 0:01:15]} 22. Ne3 {[%clk 0:02:15]}  Ng4 {[%clk 0:01:07]} 23. Nxg4 {[%clk 0:01:46]}  fxg4 {[%clk 0:01:06]} 24. Rg3 {[%clk 0:01:47]}  Qxf4 {[%clk 0:00:58]} 25. Bd2 {[%clk 0:01:47]}  Qe5 {[%clk 0:00:35]} 26. Bxg4 {[%clk 0:01:40]}  Bxg4 {[%clk 0:00:34]} 27. Qxg4 {[%clk 0:01:41]}  Qd4 {[%clk 0:00:25]} 28. Qxd4 {[%clk 0:01:31]}  Bxd4 {[%clk 0:00:18]} 29. Nb5 {[%clk 0:01:31]}  Bxb2 {[%clk 0:00:16]} 30. Nxd6 {[%clk 0:01:28]}  Bxa1 {[%clk 0:00:14]} 31. Nf7# {[%clk 0:01:28]} 1-0


[Site "https://www.chess.com"]

[Event "Titled Tuesday Blitz August 16 Late 2022"]
[White "Remolar Gallen, Jose"]
[Black "Michalski, Olaf"]
[WhiteFideId "2215187"]
[BlackFideId "1106740"]
[WhiteElo "2205"]
[BlackElo "1937"]
[Result "1-0"]
[Round "08"]
[TimeControl "180+1"]
[Date "2022.08.18"]
[WhiteClock "0:00:00"]
[BlackClock "0:00:00"]

1. e4 {[%clk 0:00:00]}  c5 {[%clk 0:00:00]} 2. Nf3 {[%clk 0:00:00]}  a6 {[%clk 0:00:00]} 3. d4 {[%clk 0:00:00]}  cxd4 {[%clk 0:00:00]} 4. Nxd4 {[%clk 0:00:00]}  Nf6 {[%clk 0:00:00]} 5. Nc3 {[%clk 0:00:00]}  e5 {[%clk 0:00:00]} 6. Nde2 {[%clk 0:00:00]}  Bc5 {[%clk 0:00:00]} 7. Bg5 {[%clk 0:00:00]}  Bxf2+ {[%clk 0:00:00]} 8. Kxf2 {[%clk 0:00:00]}  Ng4+ {[%clk 0:00:00]} 9. Kg1 {[%clk 0:00:00]}  Qxg5 {[%clk 0:00:00]} 10. Nd5 {[%clk 0:00:00]}  O-O {[%clk 0:00:00]} 11. Nec3 {[%clk 0:00:00]}  Nc6 {[%clk 0:00:00]} 12. Be2 {[%clk 0:00:00]}  Nf6 {[%clk 0:00:00]} 13. h4 {[%clk 0:00:00]}  Qh6 {[%clk 0:00:00]} 14. g4 {[%clk 0:00:00]}  Nxd5 {[%clk 0:00:00]} 15. Nxd5 {[%clk 0:00:00]}  Qd6 {[%clk 0:00:00]} 16. g5 {[%clk 0:00:00]}  Nd4 {[%clk 0:00:00]} 17. c3 {[%clk 0:00:00]}  Ne6 {[%clk 0:00:00]} 18. Nf6+ {[%clk 0:00:00]} 1-0


[Site "https://www.chess.com"]

[Event "Titled Tuesday Blitz August 16 Late 2022"]
[White "Riehle, Marco"]
[Black "Hansen, Eric"]
[WhiteFideId "12904392"]
[BlackFideId "2606771"]
[WhiteElo "2462"]
[BlackElo "2568"]
[Result "1-0"]
[Round "08"]
[TimeControl "180+1"]
[Date "2022.08.16"]
[WhiteClock "0:00:09"]
[BlackClock "0:00:01"]

1. e4 {[%clk 0:03:00]}  c5 {[%clk 0:03:00]} 2. a3 {[%clk 0:02:59]}  d6 {[%clk 0:02:59]} 3. b4 {[%clk 0:02:59]}  Nf6 {[%clk 0:02:59]} 4. Nc3 {[%clk 0:02:59]}  Nc6 {[%clk 0:02:59]} 5. b5 {[%clk 0:02:59]}  Nd4 {[%clk 0:02:59]} 6. Nf3 {[%clk 0:02:59]}  Bg4 {[%clk 0:02:59]} 7. Be2 {[%clk 0:03:00]}  Bxf3 {[%clk 0:02:59]} 8. Bxf3 {[%clk 0:03:00]}  Nxf3+ {[%clk 0:02:53]} 9. Qxf3 {[%clk 0:03:00]}  Nd7 {[%clk 0:02:54]} 10. Bb2 {[%clk 0:02:57]}  e6 {[%clk 0:02:49]} 11. Qg3 {[%clk 0:02:52]}  h5 {[%clk 0:02:44]} 12. O-O {[%clk 0:02:48]}  h4 {[%clk 0:02:44]} 13. Qe3 {[%clk 0:02:47]}  h3 {[%clk 0:02:42]} 14. g3 {[%clk 0:02:46]}  Be7 {[%clk 0:02:33]} 15. Ne2 {[%clk 0:02:41]}  Bf6 {[%clk 0:02:32]} 16. Bxf6 {[%clk 0:02:40]}  Qxf6 {[%clk 0:02:31]} 17. f4 {[%clk 0:02:40]}  a6 {[%clk 0:02:28]} 18. c4 {[%clk 0:02:31]}  axb5 {[%clk 0:02:27]} 19. cxb5 {[%clk 0:02:31]}  O-O {[%clk 0:02:26]} 20. a4 {[%clk 0:02:24]}  Ra5 {[%clk 0:02:22]} 21. Ra2 {[%clk 0:01:53]}  Rfa8 {[%clk 0:02:21]} 22. Rfa1 {[%clk 0:01:54]}  Nb6 {[%clk 0:02:21]} 23. Nc3 {[%clk 0:01:54]}  Qd4 {[%clk 0:02:20]} 24. Kf2 {[%clk 0:01:52]}  Nc4 {[%clk 0:02:17]} 25. Qxd4 {[%clk 0:01:52]}  cxd4 {[%clk 0:02:18]} 26. Nd1 {[%clk 0:01:47]}  e5 {[%clk 0:02:08]} 27. d3 {[%clk 0:01:39]}  Nb6 {[%clk 0:02:08]} 28. fxe5 {[%clk 0:01:35]}  dxe5 {[%clk 0:02:08]} 29. Nb2 {[%clk 0:01:10]}  Rc8 {[%clk 0:02:07]} 30. Kf3 {[%clk 0:01:08]}  Rc2 {[%clk 0:01:12]} 31. Nc4 {[%clk 0:01:07]}  Rxa2 {[%clk 0:01:09]} 32. Rxa2 {[%clk 0:01:06]}  Rxa4 {[%clk 0:01:10]} 33. Rxa4 {[%clk 0:01:05]}  Nxa4 {[%clk 0:01:11]} 34. Nxe5 {[%clk 0:01:06]}  Nc5 {[%clk 0:00:56]} 35. Ke2 {[%clk 0:00:59]}  Kf8 {[%clk 0:00:55]} 36. Nf3 {[%clk 0:00:57]}  Ne6 {[%clk 0:00:55]} 37. Ng1 {[%clk 0:00:54]}  Ng5 {[%clk 0:00:52]} 38. Nf3 {[%clk 0:00:54]}  Ne6 {[%clk 0:00:49]} 39. Ng1 {[%clk 0:00:54]}  Ke7 {[%clk 0:00:41]} 40. Nxh3 {[%clk 0:00:54]}  Nc7 {[%clk 0:00:42]} 41. b6 {[%clk 0:00:52]}  Na8 {[%clk 0:00:41]} 42. Ng5 {[%clk 0:00:51]}  Nxb6 {[%clk 0:00:26]} 43. Nf3 {[%clk 0:00:52]}  Kd6 {[%clk 0:00:23]} 44. Nxd4 {[%clk 0:00:52]}  g6 {[%clk 0:00:24]} 45. h4 {[%clk 0:00:51]}  Nd7 {[%clk 0:00:24]} 46. Ke3 {[%clk 0:00:44]}  Ne5 {[%clk 0:00:21]} 47. Nf3 {[%clk 0:00:42]}  Ng4+ {[%clk 0:00:16]} 48. Kf4 {[%clk 0:00:40]}  Nf2 {[%clk 0:00:16]} 49. Ke3 {[%clk 0:00:38]}  Ng4+ {[%clk 0:00:16]} 50. Kf4 {[%clk 0:00:39]}  Nf2 {[%clk 0:00:17]} 51. d4 {[%clk 0:00:39]}  b5 {[%clk 0:00:17]} 52. Ke3 {[%clk 0:00:39]}  Ng4+ {[%clk 0:00:17]} 53. Kf4 {[%clk 0:00:37]}  Nf2 {[%clk 0:00:17]} 54. g4 {[%clk 0:00:35]}  b4 {[%clk 0:00:17]} 55. Nd2 {[%clk 0:00:33]}  Nd3+ {[%clk 0:00:12]} 56. Kg5 {[%clk 0:00:26]}  Ke7 {[%clk 0:00:10]} 57. h5 {[%clk 0:00:25]}  gxh5 {[%clk 0:00:09]} 58. gxh5 {[%clk 0:00:25]}  Nc1 {[%clk 0:00:04]} 59. h6 {[%clk 0:00:23]}  Kf8 {[%clk 0:00:05]} 60. d5 {[%clk 0:00:23]}  Nd3 {[%clk 0:00:02]} 61. d6 {[%clk 0:00:21]}  Ne5 {[%clk 0:00:02]} 62. Kf5 {[%clk 0:00:18]}  Nd7 {[%clk 0:00:02]} 63. Nb3 {[%clk 0:00:19]}  Kg8 {[%clk 0:00:02]} 64. e5 {[%clk 0:00:16]}  Nf8 {[%clk 0:00:02]} 65. Kf6 {[%clk 0:00:15]}  Nd7+ {[%clk 0:00:02]} 66. Kf5 {[%clk 0:00:16]}  Nf8 {[%clk 0:00:03]} 67. Nc5 {[%clk 0:00:13]}  b3 {[%clk 0:00:01]} 68. Nxb3 {[%clk 0:00:13]}  Nd7 {[%clk 0:00:02]} 69. Kg5 {[%clk 0:00:11]}  Nxe5 {[%clk 0:00:01]} 70. Kf6 {[%clk 0:00:10]}  Ng4+ {[%clk 0:00:01]} 71. Ke7 {[%clk 0:00:09]}  Ne5 {[%clk 0:00:01]} 72. Nd4 {[%clk 0:00:09]} 1-0


[Site "https://www.chess.com"]